[Event "Skalica SCHAEFFLER Open 2019"]
[Site "Skalica"]
[Date "2019.08.25"]
[Round "1.1"]
[White "Romanova, Ela"]
[Black "Petkevich, Denis"]
[Result "0-1"]
[ECO "B43"]
[WhiteElo "1337"]
[BlackElo "1863"]
[Annotator "NA"]
[PlyCount "74"]
[EventDate "2019.08.25"]
[EventType "swiss"]
[EventCountry "SVK"]
[SourceTitle "playchess.com"]
[Source "ChessBase"]
[SourceQuality "1"]
[TimeControl "40/5400+30:1800+30"]

1. e4 {[%emt 0:00:00]} c5 {[%emt 0:00:00]} 2. Nf3 {[%emt 0:00:00]} e6 {[%emt 0:00:00]} 3. d4 {[%emt 0:00:44]} cxd4 {[%emt 0:00:00]} 4. Nxd4 {[%emt 0:00:13]} a6 {[%emt 0:00:00]} 5. Nc3 {[%emt 0:00:59]} Qc7 {[%emt 0:00:00]} 6. a3 {[%emt 0:02:00]} b5 {[%emt 0:00:25]} 7. Bd2 {[%emt 0:03:49]} Bb7 {[%emt 0:01:29]} 8. Bd3 {[%emt 0:03:39]} Nf6 {[%emt 0:01:11]} 9. Be3 {[%emt 0:09:40]} b4 {[%emt 0:01:14]} 10. axb4 {[%emt 0:01:52]} Bxb4 {[%emt 0:00:06]} 11. Bd2 {[%emt 0:03:39]} Bxc3 {[%emt 0:01:28]} 12. Bxc3 {[%emt 0:00:14]} Nxe4 {[%emt 0:00:26]} 13. Bxe4 {[%emt 0:02:16]} Bxe4 {[%emt 0:00:07]} 14. Qg4 {[%emt 0:03:23]} Bg6 {[%emt 0:00:57]} 15. O-O {[%emt 0:02:25]} O-O {[%emt 0:04:03]} 16. h4 {[%emt 0:06:32]} h5 {[%emt 0:02:41]} 17. Qg5 {[%emt 0:09:50]} Kh7 {[%emt 0:03:34]} 18. Rfe1 {[%emt 0:09:11]} f6 {[%emt 0:01:29]} 19. Qd2 {[%emt 0:00:35]} e5 {[%emt 0:00:13]} 20. Nb3 {[%emt 0:01:57]} Qc4 {[%emt 0:04:41]} 21. Qd6 {[%emt 0:13:44]} Re8 {[%emt 0:02:33]} 22. Rac1 {[%emt 0:06:10]} Re6 {[%emt 0:02:54]} 23. Qb4 {[%emt 0:03:38]} Qxb4 {[%emt 0:01:52]} 24. Bxb4 {[%emt 0:00:11]} Nc6 {[%emt 0:00:03]} 25. Bc5 {[%emt 0:01:25]} Rb8 {[%emt 0:01:15]} 26. Red1 {[%emt 0:01:01]} Be8 {[%emt 0:05:37]} 27. Bd6 {[%emt 0:04:21]} Rxb3 {[%emt 0:00:50]} 28. cxb3 {[%emt 0:00:17]} Nd4 {[%emt 0:00:02]} 29. Rxd4 {[%emt 0:02:29]} exd4 {[%emt 0:00:09]} 30. Bc7 {[%emt 0:04:47]} Re2 {[%emt 0:00:55]} 31. Rd1 {[%emt 0:01:21]} Rxb2 {[%emt 0:00:17]} 32. Rxd4 {[%emt 0:00:13]} Rxb3 {[%emt 0:00:20]} 33. Re4 {[%emt 0:02:50]} Bf7 {[%emt 0:00:30]} 34. Ra4 {[%emt 0:00:31]} Rc3 {[%emt 0:00:42]} 35. Bg3 {[%emt 0:00:55]} Bc4 {[%emt 0:00:00]} 36. f3 {[%emt 0:00:35]} Rc2 {[%emt 0:00:10]} 37. Bf2 {[%emt 0:00:25]} d5 {[%emt 0:00:09]} 0-1

[Event "Skalica SCHAEFFLER Open 2019"]
[Site "Skalica"]
[Date "2019.08.25"]
[Round "1.2"]
[White "Ivanov, Alexander"]
[Black "Durana, Jonas"]
[Result "1-0"]
[ECO "C02"]
[WhiteElo "2473"]
[BlackElo "1304"]
[Annotator "ChessBase"]
[PlyCount "44"]
[EventDate "2019.08.25"]
[EventType "swiss"]
[EventCountry "SVK"]
[SourceTitle "playchess.com"]
[Source "ChessBase"]
[SourceQuality "1"]
[TimeControl "40/5400+30:1800+30"]

1. e4 {[%emt 0:00:00]} e6 {[%emt 0:00:00]} 2. d4 {[%emt 0:00:00]} d5 {[%emt 0:00:00]} 3. e5 {[%emt 0:00:00]} c5 {[%emt 0:00:26]} 4. c3 {[%emt 0:00:04]} Nc6 {[%emt 0:00:00]} 5. Nf3 {[%emt 0:00:08]} Qb6 {[%emt 0:00:00]} 6. a3 {[%emt 0:00:35]} cxd4 {[%emt 0:00:27]} 7. cxd4 {[%emt 0:00:00]} Nge7 {[%emt 0:00:32]} 8. Nc3 {[%emt 0:06:26]} Nf5 {[%emt 0:09:47]} 9. Na4 {[%emt 0:00:09]} Qc7 {[%emt 0:00:39]} 10. Be2 {[%emt 0:32:29]} Be7 {[%emt 0:03:16]} 11. g4 {[%emt 0:10:00]} Nh6 {[%emt 0:08:32]} 12. h3 {[%emt 0:01:23]} Ng8 {[%emt 0:00:30]} 13. Be3 {[%emt 0:03:29]} f6 {[%emt 0:02:29]} 14. Rc1 {[%emt 0:00:39]} Qb8 {[%emt 0:01:36]} 15. Bf4 {[%emt 0:02:36]} g5 {[%emt 0:06:28]} 16. Bh2 {[%emt 0:01:30]} f5 {[%emt 0:04:33]} 17. Bb5 {[%emt 0:06:30]} Bd7 {[%emt 0:00:37]} 18. gxf5 {[%emt 0:00:14]} exf5 {[%emt 0:00:57]} 19. e6 {[%emt 0:00:10]} Qd8 {[%emt 0:01:47]} 20. exd7+ {[%emt 0:00:06]} Qxd7 {[%emt 0:09:43]} 21. Ne5 {[%emt 0:00:11]} Qd8 {[%emt 0:00:30]} 22. Qh5+ {[%emt 0:00:04]} Kf8 {[%emt 0:00:16]} 1-0

[Event "Skalica SCHAEFFLER Open 2019"]
[Site "Skalica"]
[Date "2019.08.25"]
[Round "1.3"]
[White "Sprusansky, Ferdinand"]
[Black "Skreko, Igor"]
[Result "0-1"]
[ECO "B90"]
[WhiteElo "1290"]
[BlackElo "1725"]
[Annotator "NA"]
[PlyCount "52"]
[EventDate "2019.08.25"]
[EventType "swiss"]
[EventCountry "SVK"]
[SourceTitle "playchess.com"]
[Source "ChessBase"]
[SourceQuality "1"]
[TimeControl "40/5400+30:1800+30"]

1. e4 {[%emt 0:00:00]} c5 {[%emt 0:00:00]} 2. Nf3 {[%emt 0:00:11]} d6 {[%emt 0:00:00]} 3. d4 {[%emt 0:01:06]} cxd4 {[%emt 0:00:00]} 4. Nxd4 {[%emt 0:00:15]} Nf6 {[%emt 0:00:00]} 5. Nc3 {[%emt 0:00:21]} a6 {[%emt 0:00:00]} 6. h3 {[%emt 0:01:13]} e6 {[%emt 0:00:21]} 7. Bg5 {[%emt 0:00:30]} Be7 {[%emt 0:00:10]} 8. Bc4 {[%emt 0:00:45]} Nxe4 {[%emt 0:11:50]} 9. Bxe7 {[%emt 0:02:21]} Nxc3 {[%emt 0:02:06]} 10. Bxd8 {[%emt 0:01:12]} Nxd1 {[%emt 0:00:54]} 11. Rxd1 {[%emt 0:02:47]} Kxd8 {[%emt 0:00:06]} 12. O-O {[%emt 0:00:27]} b5 {[%emt 0:02:03]} 13. Bb3 {[%emt 0:01:00]} Bb7 {[%emt 0:01:06]} 14. a4 {[%emt 0:05:24]} bxa4 {[%emt 0:03:01]} 15. Bxa4 {[%emt 0:04:04]} Kc7 {[%emt 0:02:01]} 16. Rfe1 {[%emt 0:03:26]} Nd7 {[%emt 0:05:32]} 17. b4 {[%emt 0:06:46]} g6 {[%emt 0:12:07]} 18. b5 {[%emt 0:06:50]} Nc5 {[%emt 0:04:06]} 19. b6+ {[%emt 0:01:48]} Kxb6 {[%emt 0:02:16]} 20. Rb1+ {[%emt 0:00:18]} Kc7 {[%emt 0:00:43]} 21. Bc6 {[%emt 0:00:25]} Bxc6 {[%emt 0:00:27]} 22. Nxc6 {[%emt 0:00:46]} Kxc6 {[%emt 0:00:08]} 23. Rb4 {[%emt 0:01:23]} Rhb8 {[%emt 0:00:43]} 24. Reb1 {[%emt 0:00:28]} Rxb4 {[%emt 0:00:10]} 25. Rxb4 {[%emt 0:00:12]} a5 {[%emt 0:00:35]} 26. Rf4 {[%emt 0:00:17]} Ra7 {[%emt 0:00:00]} 0-1

[Event "Skalica SCHAEFFLER Open 2019"]
[Site "Skalica"]
[Date "2019.08.25"]
[Round "1.4"]
[White "Kastler, Peter"]
[Black "Novomeska, Karin"]
[Result "1-0"]
[ECO "A13"]
[WhiteElo "1724"]
[BlackElo "1269"]
[Annotator "NA"]
[PlyCount "108"]
[EventDate "2019.08.25"]
[EventType "swiss"]
[EventCountry "SVK"]
[SourceTitle "playchess.com"]
[Source "ChessBase"]
[SourceQuality "1"]
[TimeControl "40/5400+30:1800+30"]

1. d4 {[%emt 0:00:03]} d5 {[%emt 0:00:18]} 2. c4 {[%emt 0:00:30]} e6 {[%emt 0:00:30]} 3. e3 {[%emt 0:00:30]} Nf6 {[%emt 0:00:30]} 4. Nf3 {[%emt 0:00:30]} c5 {[%emt 0:00:30]} 5. Nc3 {[%emt 0:02:22]} Nc6 {[%emt 0:02:15]} 6. Be2 {[%emt 0:00:30]} Be7 {[%emt 0:00:30]} 7. O-O {[%emt 0:00:30]} O-O {[%emt 0:00:30]} 8. b3 {[%emt 0:07:14]} b6 {[%emt 0:06:02]} 9. Bb2 {[%emt 0:00:30]} Bb7 {[%emt 0:00:30]} 10. Rc1 {[%emt 0:00:30]} Rc8 {[%emt 0:00:30]} 11. cxd5 {[%emt 0:00:30]} Nxd5 {[%emt 0:00:30]} 12. Nxd5 {[%emt 0:00:30]} Qxd5 {[%emt 0:00:30]} 13. dxc5 {[%emt 0:02:00]} Qxd1 {[%emt 0:00:30]} 14. Rfxd1 {[%emt 0:02:04]} Bxc5 {[%emt 0:00:29]} 15. Rd7 {[%emt 0:00:54]} Rb8 {[%emt 0:13:10]} 16. Ne5 {[%emt 0:00:30]} Nxe5 {[%emt 0:00:30]} 17. Bxe5 {[%emt 0:00:59]} Rfd8 {[%emt 0:00:31]} 18. Rcd1 {[%emt 0:01:04]} Rxd7 {[%emt 0:01:56]} 19. Rxd7 {[%emt 0:00:17]} Bc6 {[%emt 0:01:14]} 20. Rc7 {[%emt 0:02:52]} Be4 {[%emt 0:10:43]} 21. Rxc5 {[%emt 0:02:14]} Rd8 {[%emt 0:00:52]} 22. Rc4 {[%emt 0:01:32]} Bb1 {[%emt 0:04:16]} 23. a3 {[%emt 0:02:53]} h6 {[%emt 0:02:10]} 24. Kf1 {[%emt 0:07:38]} Rd5 {[%emt 0:02:58]} 25. Bb8 {[%emt 0:01:59]} a5 {[%emt 0:07:05]} 26. Ke1 {[%emt 0:00:28]} b5 {[%emt 0:01:12]} 27. Rc1 {[%emt 0:01:55]} Bf5 {[%emt 0:01:19]} 28. f3 {[%emt 0:01:22]} Bd3 {[%emt 0:00:50]} 29. Rd1 {[%emt 0:00:47]} Bc2 {[%emt 0:04:21]} 30. Rxd5 {[%emt 0:00:27]} exd5 {[%emt 0:00:11]} 31. b4 {[%emt 0:00:17]} axb4 {[%emt 0:01:10]} 32. axb4 {[%emt 0:00:08]} Ba4 {[%emt 0:00:06]} 33. Bd1 {[%emt 0:00:09]} Bxd1 {[%emt 0:00:23]} 34. Kxd1 {[%emt 0:00:10]} Kf8 {[%emt 0:00:10]} 35. Bd6+ {[%emt 0:00:16]} Ke8 {[%emt 0:00:13]} 36. Kd2 {[%emt 0:00:14]} g6 {[%emt 0:00:19]} 37. Kd3 {[%emt 0:00:07]} Kd7 {[%emt 0:00:02]} 38. Bc5 {[%emt 0:00:11]} Ke6 {[%emt 0:00:23]} 39. Kd4 {[%emt 0:00:12]} f5 {[%emt 0:00:26]} 40. Bf8 {[%emt 0:00:24]} h5 {[%emt 0:00:52]} 41. Bg7 {[%emt 0:30:44]} Kd6 {[%emt 0:30:28]} 42. Bh6 {[%emt 0:01:01]} Kc6 {[%emt 0:00:23]} 43. Ke5 {[%emt 0:00:11]} h4 {[%emt 0:00:17]} 44. h3 {[%emt 0:00:32]} d4 {[%emt 0:00:20]} 45. exd4 {[%emt 0:00:20]} Kc7 {[%emt 0:00:12]} 46. Ke6 {[%emt 0:00:12]} Kd8 {[%emt 0:00:06]} 47. d5 {[%emt 0:00:16]} Ke8 {[%emt 0:00:08]} 48. d6 {[%emt 0:00:14]} Kd8 {[%emt 0:00:04]} 49. d7 {[%emt 0:00:17]} Kc7 {[%emt 0:00:12]} 50. Ke7 {[%emt 0:00:12]} Kc6 {[%emt 0:00:10]} 51. d8=Q {[%emt 0:00:08]} Kb7 {[%emt 0:00:20]} 52. Kd6 {[%emt 0:00:23]} Ka6 {[%emt 0:00:36]} 53. Kc6 {[%emt 0:00:25]} Ka7 {[%emt 0:00:02]} 54. Qb6+ {[%emt 0:00:17]} Ka8 {[%emt 0:00:02]} 1-0

[Event "Skalica SCHAEFFLER Open 2019"]
[Site "Skalica"]
[Date "2019.08.25"]
[Round "1.5"]
[White "Kadlcik, Marek"]
[Black "Vach, Jozef"]
[Result "0-1"]
[ECO "D02"]
[WhiteElo "1259"]
[BlackElo "1722"]
[Annotator "NA"]
[PlyCount "143"]
[EventDate "2019.08.25"]
[EventType "swiss"]
[EventCountry "SVK"]
[SourceTitle "playchess.com"]
[Source "ChessBase"]
[SourceQuality "1"]
[TimeControl "40/5400+30:1800+30"]

1. Nf3 {[%emt 0:00:00]} Nf6 {[%emt 0:00:00]} 2. d4 {[%emt 0:00:00]} d5 {[%emt 0:00:00]} 3. Bf4 {[%emt 0:00:00]} c6 {[%emt 0:00:24]} 4. h3 {[%emt 0:00:17]} e6 {[%emt 0:00:16]} 5. e3 {[%emt 0:00:19]} c5 {[%emt 0:00:23]} 6. c3 {[%emt 0:00:05]} Nc6 {[%emt 0:00:18]} 7. Bb5 {[%emt 0:01:43]} Bd7 {[%emt 0:00:10]} 8. O-O {[%emt 0:01:07]} a6 {[%emt 0:00:22]} 9. Be2 {[%emt 0:00:23]} Rc8 {[%emt 0:05:27]} 10. Re1 {[%emt 0:15:10]} Be7 {[%emt 0:00:30]} 11. Nbd2 {[%emt 0:00:00]} O-O {[%emt 0:04:45]} 12. Bf1 {[%emt 0:01:07]} Re8 {[%emt 0:00:59]} 13. Ne5 {[%emt 0:02:26]} Rf8 {[%emt 0:00:31]} 14. Bd3 {[%emt 0:00:30]} Nxe5 {[%emt 0:00:30]} 15. Bxe5 {[%emt 0:00:30]} Bc6 {[%emt 0:00:30]} 16. Nf3 {[%emt 0:00:30]} Ne4 {[%emt 0:00:30]} 17. Qc2 {[%emt 0:00:30]} f5 {[%emt 0:00:30]} 18. Rac1 {[%emt 0:16:18]} c4 {[%emt 0:02:35]} 19. Bf1 {[%emt 0:01:30]} g5 {[%emt 0:02:45]} 20. Nd2 {[%emt 0:06:09]} g4 {[%emt 0:01:48]} 21. Nxe4 {[%emt 0:00:33]} dxe4 {[%emt 0:00:47]} 22. hxg4 {[%emt 0:01:23]} fxg4 {[%emt 0:00:22]} 23. Bxc4 {[%emt 0:00:29]} Bd5 {[%emt 0:00:36]} 24. Bxd5 {[%emt 0:00:23]} exd5 {[%emt 0:01:01]} 25. Qe2 {[%emt 0:01:38]} Qd7 {[%emt 0:00:26]} 26. c4 {[%emt 0:00:24]} Qf5 {[%emt 0:00:24]} 27. cxd5 {[%emt 0:04:55]} Rxc1 {[%emt 0:03:01]} 28. Rxc1 {[%emt 0:03:29]} h5 {[%emt 0:01:53]} 29. d6 {[%emt 0:00:23]} Bh4 {[%emt 0:00:10]} 30. g3 {[%emt 0:01:02]} Bg5 {[%emt 0:00:15]} 31. Qc4+ {[%emt 0:03:57]} Kh7 {[%emt 0:01:25]} 32. Qe2 {[%emt 0:09:11]} Bd8 {[%emt 0:00:39]} 33. Bf4 {[%emt 0:03:14]} Rf7 {[%emt 0:02:19]} 34. Rc5 {[%emt 0:01:49]} Qg6 {[%emt 0:01:11]} 35. Qc4 {[%emt 0:13:20]} h4 {[%emt 0:02:05]} 36. Qd5 {[%emt 0:01:27]} hxg3 {[%emt 0:01:19]} 37. fxg3 {[%emt 0:01:51]} Bf6 {[%emt 0:01:54]} 38. Qh5+ {[%emt 0:00:43]} Qxh5 {[%emt 0:00:49]} 39. Rxh5+ {[%emt 0:00:07]} Kg6 {[%emt 0:00:10]} 40. Rd5 {[%emt 0:02:41]} Rd7 {[%emt 0:00:36]} 41. Kf1 {[%emt 0:33:35]} Kf7 {[%emt 0:30:29]} 42. Rh5 {[%emt 0:00:00]} Kg6 {[%emt 0:00:00]} 43. Rc5 {[%emt 0:00:00]} Bd8 {[%emt 0:00:00]} 44. Rc7 {[%emt 0:00:00]} Rf7 {[%emt 0:00:00]} 45. Rxf7 {[%emt 0:00:00]} Kxf7 {[%emt 0:00:00]} 46. Ke2 {[%emt 0:00:00]} Ba5 {[%emt 0:00:00]} 47. a3 {[%emt 0:00:00]} Ke6 {[%emt 0:00:00]} 48. b4 {[%emt 0:00:00]} Bd8 {[%emt 0:00:00]} 49. Kd2 {[%emt 0:00:00]} Kd5 {[%emt 0:00:00]} 50. Kc3 {[%emt 0:00:00]} b5 {[%emt 0:00:00]} 51. d7 {[%emt 0:00:00]} Kc6 {[%emt 0:00:00]} 52. Bh6 {[%emt 0:00:00]} Kxd7 {[%emt 0:00:00]} 53. d5 {[%emt 0:00:00]} Bf6+ {[%emt 0:00:00]} 54. Kb3 {[%emt 0:01:08]} Kd6 {[%emt 0:00:00]} 55. Kc2 {[%emt 0:06:13]} Kxd5 {[%emt 0:00:00]} 56. Bf4 {[%emt 0:00:07]} Kc4 {[%emt 0:00:00]} 57. Bc7 {[%emt 0:00:30]} Bc3 {[%emt 0:00:00]} 58. Bf4 {[%emt 0:03:15]} Be1 {[%emt 0:00:00]} 59. Be5 {[%emt 0:00:53]} Bxb4 {[%emt 0:00:00]} 60. axb4 {[%emt 0:01:59]} Kxb4 {[%emt 0:00:00]} 61. Bc3+ {[%emt 0:00:24]} Kc4 {[%emt 0:00:00]} 62. Ba5 {[%emt 0:00:50]} b4 {[%emt 0:00:00]} 63. Bb6 {[%emt 0:00:28]} Kb5 {[%emt 0:00:00]} 64. Bd4 {[%emt 0:00:33]} a5 {[%emt 0:00:00]} 65. Kb3 {[%emt 0:00:31]} a4+ {[%emt 0:00:00]} 66. Ka2 {[%emt 0:00:30]} Kc4 {[%emt 0:00:00]} 67. Kb2 {[%emt 0:00:24]} Kd3 {[%emt 0:00:00]} 68. Kc1 {[%emt 0:00:33]} Ke2 {[%emt 0:00:00]} 69. Bc5 {[%emt 0:00:32]} Kf3 {[%emt 0:00:00]} 70. Bxb4 {[%emt 0:00:25]} Kxg3 {[%emt 0:00:00]} 71. Kd2 {[%emt 0:00:34]} Kf2 {[%emt 0:00:00]} 72. Kc2 {[%emt 0:01:03]} 0-1

[Event "Skalica SCHAEFFLER Open 2019"]
[Site "Skalica"]
[Date "2019.08.25"]
[Round "1.6"]
[White "Krupnova, Anna"]
[Black "Kozusnikova, Daniela"]
[Result "1-0"]
[ECO "D06"]
[WhiteElo "1712"]
[BlackElo "1235"]
[Annotator "NA"]
[PlyCount "123"]
[EventDate "2019.08.25"]
[EventType "swiss"]
[EventCountry "SVK"]
[SourceTitle "playchess.com"]
[Source "ChessBase"]
[SourceQuality "1"]
[TimeControl "40/5400+30:1800+30"]

1. d4 {[%emt 0:00:00]} d5 {[%emt 0:00:06]} 2. c4 {[%emt 0:00:00]} Nf6 {[%emt 0:00:08]} 3. cxd5 {[%emt 0:00:25]} Nxd5 {[%emt 0:00:32]} 4. e4 {[%emt 0:00:17]} Nf6 {[%emt 0:01:02]} 5. Nc3 {[%emt 0:01:47]} e6 {[%emt 0:01:02]} 6. Nf3 {[%emt 0:03:50]} Bb4 {[%emt 0:02:21]} 7. Qa4+ {[%emt 0:08:17]} Nc6 {[%emt 0:03:26]} 8. Bb5 {[%emt 0:02:44]} Bxc3+ {[%emt 0:06:08]} 9. bxc3 {[%emt 0:00:07]} Bd7 {[%emt 0:01:20]} 10. Qc2 {[%emt 0:15:29]} O-O {[%emt 0:03:43]} 11. Bd3 {[%emt 0:03:33]} e5 {[%emt 0:04:34]} 12. d5 {[%emt 0:02:29]} Ne7 {[%emt 0:00:48]} 13. Nxe5 {[%emt 0:01:08]} Ng6 {[%emt 0:02:57]} 14. Nxg6 {[%emt 0:04:21]} fxg6 {[%emt 0:01:57]} 15. O-O {[%emt 0:01:34]} h6 {[%emt 0:04:15]} 16. c4 {[%emt 0:12:07]} Qe7 {[%emt 0:11:33]} 17. Bb2 {[%emt 0:02:06]} h5 {[%emt 0:01:27]} 18. e5 {[%emt 0:01:11]} Ng4 {[%emt 0:01:57]} 19. h3 {[%emt 0:08:36]} Nxe5 {[%emt 0:04:03]} 20. Bxe5 {[%emt 0:11:04]} Qxe5 {[%emt 0:00:48]} 21. Bxg6 {[%emt 0:00:57]} Rf6 {[%emt 0:09:22]} 22. Bd3 {[%emt 0:02:24]} Qg5 {[%emt 0:03:32]} 23. Kh2 {[%emt 0:01:35]} Raf8 {[%emt 0:03:16]} 24. Be4 {[%emt 0:03:42]} Qh4 {[%emt 0:04:12]} 25. f3 {[%emt 0:01:27]} Bf5 {[%emt 0:10:30]} 26. Rae1 {[%emt 0:00:47]} Qf4+ {[%emt 0:07:09]} 27. g3 {[%emt 0:02:18]} Qd6 {[%emt 0:02:03]} 28. c5 {[%emt 0:02:22]} Qe5 {[%emt 0:02:00]} 29. Bxf5 {[%emt 0:02:58]} Qxf5 {[%emt 0:00:16]} 30. Qb3 {[%emt 0:01:38]} h4 {[%emt 0:02:30]} 31. g4 {[%emt 0:03:31]} Qf4+ {[%emt 0:00:52]} 32. Kh1 {[%emt 0:00:09]} Qg3 {[%emt 0:01:04]} 33. f4 {[%emt 0:00:49]} Rxf4 {[%emt 0:02:52]} 34. Qxg3 {[%emt 0:00:37]} hxg3 {[%emt 0:02:08]} 35. Rxf4 {[%emt 0:00:26]} Rxf4 {[%emt 0:00:17]} 36. Re7 {[%emt 0:00:39]} Rd4 {[%emt 0:01:03]} 37. Rxc7 {[%emt 0:00:24]} Rxd5 {[%emt 0:00:03]} 38. Rxb7 {[%emt 0:00:38]} Rxc5 {[%emt 0:01:05]} 39. Rxa7 {[%emt 0:00:27]} Rc2 {[%emt 0:00:06]} 40. a4 {[%emt 0:00:33]} Kf8 {[%emt 0:00:41]} 41. a5 {[%emt 0:30:08]} Ke8 {[%emt 0:30:29]} 42. Rxg7 {[%emt 0:00:13]} Kd8 {[%emt 0:00:30]} 43. a6 {[%emt 0:00:17]} Ra2 {[%emt 0:00:47]} 44. a7 {[%emt 0:00:06]} Kc8 {[%emt 0:00:09]} 45. a8=Q+ {[%emt 0:00:40]} Rxa8 {[%emt 0:00:16]} 46. Rg8+ {[%emt 0:00:03]} Kb7 {[%emt 0:00:29]} 47. Rxa8 {[%emt 0:00:06]} Kxa8 {[%emt 0:00:21]} 48. g5 {[%emt 0:00:07]} Kb8 {[%emt 0:00:06]} 49. g6 {[%emt 0:00:08]} Kc8 {[%emt 0:00:15]} 50. g7 {[%emt 0:00:05]} g2+ {[%emt 0:00:54]} 51. Kxg2 {[%emt 0:00:05]} Kd7 {[%emt 0:00:00]} 52. g8=Q {[%emt 0:00:05]} Ke7 {[%emt 0:00:03]} 53. Qg6 {[%emt 0:00:21]} Kd7 {[%emt 0:00:10]} 54. Qf6 {[%emt 0:00:11]} Kc7 {[%emt 0:00:30]} 55. Qe6 {[%emt 0:00:06]} Kb7 {[%emt 0:00:17]} 56. Qd6 {[%emt 0:00:12]} Ka7 {[%emt 0:00:16]} 57. Qb4 {[%emt 0:00:11]} Ka6 {[%emt 0:00:16]} 58. Kf3 {[%emt 0:00:09]} Ka7 {[%emt 0:00:19]} 59. Ke4 {[%emt 0:00:06]} Ka6 {[%emt 0:00:20]} 60. Kd5 {[%emt 0:00:08]} Ka7 {[%emt 0:00:16]} 61. Kc6 {[%emt 0:00:10]} Ka8 {[%emt 0:00:30]} 62. Qb7# {[%emt 0:00:23]} 1-0

[Event "Skalica SCHAEFFLER Open 2019"]
[Site "Skalica"]
[Date "2019.08.25"]
[Round "1.7"]
[White "Londinova, Jasmina Marie"]
[Black "Vlcek, Antonin"]
[Result "0-1"]
[ECO "C50"]
[WhiteElo "1231"]
[BlackElo "1686"]
[Annotator "NA"]
[PlyCount "66"]
[EventDate "2019.08.25"]
[EventType "swiss"]
[EventCountry "SVK"]
[SourceTitle "playchess.com"]
[Source "ChessBase"]
[SourceQuality "1"]
[TimeControl "40/5400+30:1800+30"]

1. e4 {[%emt 0:00:00]} e5 {[%emt 0:00:00]} 2. Nf3 {[%emt 0:00:00]} Nc6 {[%emt 0:00:00]} 3. Bc4 {[%emt 0:00:07]} Nf6 {[%emt 0:00:32]} 4. Nc3 {[%emt 0:00:25]} Bc5 {[%emt 0:00:28]} 5. O-O {[%emt 0:00:30]} d6 {[%emt 0:00:31]} 6. h3 {[%emt 0:00:24]} O-O {[%emt 0:00:56]} 7. d3 {[%emt 0:00:55]} Na5 {[%emt 0:01:11]} 8. Bb3 {[%emt 0:01:00]} c6 {[%emt 0:01:38]} 9. Bg5 {[%emt 0:01:35]} Nxb3 {[%emt 0:01:59]} 10. axb3 {[%emt 0:00:25]} Be6 {[%emt 0:01:10]} 11. Ne2 {[%emt 0:01:18]} h6 {[%emt 0:04:44]} 12. Bh4 {[%emt 0:00:45]} g5 {[%emt 0:00:42]} 13. Bg3 {[%emt 0:00:13]} Nh5 {[%emt 0:00:34]} 14. Kh2 {[%emt 0:03:57]} f5 {[%emt 0:05:41]} 15. exf5 {[%emt 0:00:46]} Rxf5 {[%emt 0:00:58]} 16. d4 {[%emt 0:03:39]} exd4 {[%emt 0:04:12]} 17. Nfxd4 {[%emt 0:01:33]} Rf6 {[%emt 0:05:27]} 18. Nxe6 {[%emt 0:00:56]} Rxe6 {[%emt 0:00:28]} 19. Qd3 {[%emt 0:04:27]} Qf6 {[%emt 0:01:09]} 20. c3 {[%emt 0:04:59]} Rae8 {[%emt 0:05:00]} 21. Rae1 {[%emt 0:01:37]} Qe7 {[%emt 0:05:36]} 22. Qf3 {[%emt 0:07:33]} Nxg3 {[%emt 0:07:32]} 23. fxg3 {[%emt 0:00:39]} Rf8 {[%emt 0:02:32]} 24. Qd3 {[%emt 0:01:20]} Bf2 {[%emt 0:03:46]} 25. Rd1 {[%emt 0:03:54]} Rxe2 {[%emt 0:02:35]} 26. Rb1 {[%emt 0:02:25]} Qe4 {[%emt 0:04:08]} 27. Qxd6 {[%emt 0:03:54]} Qxg2+ {[%emt 0:04:31]} 28. Kxg2 {[%emt 0:00:48]} Bc5+ {[%emt 0:00:10]} 29. Kh1 {[%emt 0:00:24]} Bxd6 {[%emt 0:00:14]} 30. g4 {[%emt 0:00:40]} Rxf1+ {[%emt 0:01:30]} 31. Rxf1 {[%emt 0:00:30]} Bf4 {[%emt 0:00:30]} 32. Rb1 {[%emt 0:00:59]} c5 {[%emt 0:00:38]} 33. Kg1 {[%emt 0:02:50]} Kf7 {[%emt 0:00:25]} 0-1

[Event "Skalica SCHAEFFLER Open 2019"]
[Site "Skalica"]
[Date "2019.08.25"]
[Round "1.8"]
[White "Podskubka, Ondrej"]
[Black "Kozusnik, Roman"]
[Result "1-0"]
[ECO "D02"]
[WhiteElo "1684"]
[BlackElo "1231"]
[Annotator "NA"]
[PlyCount "65"]
[EventDate "2019.08.25"]
[EventType "swiss"]
[EventCountry "SVK"]
[SourceTitle "playchess.com"]
[Source "ChessBase"]
[SourceQuality "1"]
[TimeControl "40/5400+30:1800+30"]

1. Nf3 {[%emt 0:00:00]} d5 {[%emt 0:00:18]} 2. d4 {[%emt 0:00:00]} Nf6 {[%emt 0:00:27]} 3. Bf4 {[%emt 0:00:14]} e6 {[%emt 0:02:00]} 4. e3 {[%emt 0:01:43]} Bd6 {[%emt 0:00:54]} 5. Bg3 {[%emt 0:00:26]} c5 {[%emt 0:05:21]} 6. dxc5 {[%emt 0:00:36]} Bxc5 {[%emt 0:00:03]} 7. c3 {[%emt 0:01:28]} O-O {[%emt 0:01:59]} 8. Be2 {[%emt 0:00:16]} Nc6 {[%emt 0:03:48]} 9. O-O {[%emt 0:07:02]} Ne4 {[%emt 0:00:56]} 10. Nbd2 {[%emt 0:02:12]} Nxg3 {[%emt 0:02:02]} 11. hxg3 {[%emt 0:00:06]} e5 {[%emt 0:02:03]} 12. b4 {[%emt 0:04:40]} Bd6 {[%emt 0:00:30]} 13. b5 {[%emt 0:04:26]} Ne7 {[%emt 0:00:55]} 14. c4 {[%emt 0:00:13]} Bg4 {[%emt 0:03:43]} 15. cxd5 {[%emt 0:01:35]} Nxd5 {[%emt 0:02:29]} 16. Ne4 {[%emt 0:01:03]} Bc7 {[%emt 0:04:59]} 17. Qb3 {[%emt 0:07:52]} Nf6 {[%emt 0:10:53]} 18. Nxf6+ {[%emt 0:03:34]} Qxf6 {[%emt 0:00:58]} 19. Qc4 {[%emt 0:00:45]} Bxf3 {[%emt 0:11:07]} 20. Bxf3 {[%emt 0:00:08]} Qb6 {[%emt 0:01:59]} 21. a4 {[%emt 0:00:10]} a5 {[%emt 0:01:43]} 22. bxa6 {[%emt 0:02:47]} Rxa6 {[%emt 0:00:42]} 23. Rfb1 {[%emt 0:01:04]} Qd6 {[%emt 0:08:37]} 24. Rxb7 {[%emt 0:00:22]} Bd8 {[%emt 0:03:24]} 25. Rd1 {[%emt 0:00:27]} Qf6 {[%emt 0:02:51]} 26. Rbd7 {[%emt 0:04:38]} Be7 {[%emt 0:03:10]} 27. Rxe7 {[%emt 0:02:19]} Qxe7 {[%emt 0:00:53]} 28. Qxa6 {[%emt 0:00:07]} e4 {[%emt 0:00:03]} 29. Be2 {[%emt 0:01:30]} h6 {[%emt 0:00:54]} 30. Qc6 {[%emt 0:03:43]} Qb4 {[%emt 0:01:14]} 31. Bb5 {[%emt 0:01:38]} Kh7 {[%emt 0:00:44]} 32. Qd6 {[%emt 0:00:33]} Rc8 {[%emt 0:00:36]} 33. Qxb4 {[%emt 0:00:09]} 1-0